bitfinex/quotes_ETHUSD_20241023
["timestamp","ask_amount","ask_price","bid_price","bid_amount"]
[1729656714800,3.44078,2615.7,2615.5,1.19714897]
[1729656715115,3.44078,2615.7,2615.4,2.87851913]
[1729656715315,3.44078,2615.7,2615.4,2.95498024]
[1729656716634,4.26523,2615.8,2615.5,1.68137016]
[1729656716817,4.26523,2615.8,2615.4,2.95498024]
[1729656716984,4.26523,2615.8,2615.4,4.37745319]
[1729656718722,4.26523,2615.8,2615.5,1.19714897]
[1729656720004,4.26523,2615.8,2615.5,2.87851913]
[1729656720600,4.26523,2615.8,2615.5,1.19714897]
[1729656720800,0.8246,2615.8,2615.5,1.19714897]
[1729656721101,0.8246,2616.0,2615.7,1.68137016]
[1729656721896,0.8246,2616.0,2615.7,5.12211016]
[1729656722193,4.26457,2616.3,2615.9,2.47517016]
[1729656722398,4.26457,2616.3,2615.9,0.7938]
[1729656725419,3.43997,2616.3,2615.9,5.99210657]
[1729656725639,3.43997,2616.3,2615.9,7.05510612]
[1729656726352,3.43997,2616.3,2615.9,6.97865971]
[1729656726639,3.43997,2616.3,2615.9,5.91566016]
[1729656727824,3.43997,2616.3,2615.9,2.47517016]
[1729656733151,6.88005,2616.3,2615.9,2.47517016]
[1729656733314,3.43997,2616.3,2616.0,0.07644451]
[1729656733706,3.43997,2616.3,2615.9,2.47517016]
[1729656734048,3.43997,2616.3,2616.0,0.07644446]
[1729656734231,3.43997,2616.3,2615.9,6.97100407]
[1729656734612,3.43997,2616.3,2615.9,3.53052407]
[1729656735723,3.43989,2616.4,2616.1,1.68137016]
[1729656735937,3.43989,2616.4,2616.0,1.68137016]
[1729656736235,3.43989,2616.4,2616.0,0.07644407]
[1729656736417,3.43989,2616.4,2616.0,1.75781423]
[1729656736636,3.43989,2616.4,2616.0,1.68137016]
[1729656737139,3.43999,2616.3,2615.9,6.97093407]
[1729656739451,3.43989,2616.4,2616.0,1.68137016]
[1729656740141,6.87984,2616.4,2616.0,1.68137016]
[1729656740342,3.43998,2616.3,2615.9,6.97093407]
[1729656741451,3.43998,2616.3,2616.0,0.8168083]
[1729656742171,3.43998,2616.3,2616.0,0.89325237]
[1729656742362,3.43998,2616.3,2616.0,0.8168083]
[1729656742735,3.43998,2616.3,2616.0,2.49817846]
[1729656742941,3.43998,2616.3,2616.0,0.8168083]
[1729656743153,3.43998,2616.3,2616.0,2.49817846]
[1729656743355,3.43998,2616.3,2616.0,0.8168083]
[1729656743554,3.43998,2616.3,2615.9,6.97093407]
[1729656744169,3.43998,2616.3,2616.0,1.68137016]
[1729656745384,3.43998,2616.3,2615.9,3.53052407]
[1729656746089,3.43998,2616.3,2615.9,6.97100407]
[1729656746589,3.43998,2616.3,2616.0,1.68137016]
[1729656746774,3.43998,2616.3,2615.9,6.97100407]
[1729656747925,0.8189,2616.2,2615.9,6.17720407]
[1729656753519,0.8189,2616.2,2615.9,5.12185016]
[1729656754429,0.8189,2616.2,2615.9,5.12178016]
[1729656755780,0.8189,2616.2,2615.9,3.44041]
[1729656756323,0.8189,2616.2,2615.9,5.12178016]
[1729656760724,0.8189,2616.2,2615.9,8.63865519]
[1729656761027,0.8189,2616.2,2615.9,9.78091044]
[1729656761223,0.8189,2616.2,2615.9,6.34048044]
[1729656762128,0.8189,2616.2,2616.0,0.07644496]
[1729656763521,0.8189,2616.2,2616.0,1.75781512]
[1729656763825,0.7558,2616.4,2616.0,5.19817512]
[1729656764830,0.7558,2616.4,2616.0,1.34150826]
[1729656765029,0.7558,2616.4,2616.1,5.12153016]
[1729656765433,0.7558,2616.4,2616.1,5.19796979]
[1729656766007,0.7558,2616.4,2616.1,5.12153016]
[1729656766840,0.7558,2616.4,2616.1,3.44016]
[1729656767409,0.7558,2616.4,2616.0,1.19714897]
[1729656767410,4.1957,2616.4,2616.0,1.19714897]
[1729656767737,0.7558,2616.4,2616.0,4.63749897]
[1729656768927,0.7558,2616.4,2616.0,6.31886913]
[1729656769301,0.7558,2616.4,2616.0,4.63749897]
[1729656771408,0.7558,2616.4,2616.0,6.31886913]
[1729656771610,0.7558,2616.4,2616.0,7.57628393]
[1729656772552,0.7558,2616.4,2616.0,6.31886913]
[1729656773446,4.19564,2616.4,2616.0,6.31886913]
[1729656773747,0.7558,2616.4,2616.0,6.31886913]
[1729656779728,3.43973,2616.5,2616.1,3.44021]
[1729656779936,0.7894,2616.4,2616.1,3.44021]
[1729656782767,0.7894,2616.4,2616.1,5.12158016]
[1729656783336,0.7894,2616.4,2616.1,3.44021]
[1729656785883,3.43951,2616.7,2616.3,5.12134016]
[1729656785884,4.22891,2616.7,2616.3,5.12134016]
[1729656786174,4.22891,2616.7,2616.2,7.13658913]
[1729656786683,3.43958,2616.6,2616.2,1.19714897]
[1729656786852,0.7894,2616.5,2616.1,5.89475977]
[1729656787049,0.7894,2616.5,2616.1,5.89469977]
[1729656787253,0.7894,2616.5,2616.1,7.57606993]
[1729656788768,3.43985,2616.4,2616.1,1.19714897]
[1729656788979,0.8036,2616.3,2616.1,1.19714897]
[1729656789350,0.8036,2616.3,2616.0,6.31887913]
[1729656789677,4.24345,2616.4,2616.0,6.31887913]
[1729656790247,4.24345,2616.4,2616.1,1.68137016]
[1729656791186,4.24345,2616.4,2616.0,6.31887913]
[1729656792841,0.8036,2616.4,2616.0,6.31887913]
[1729656793788,0.8036,2616.4,2616.1,1.68137016]
[1729656793955,0.8036,2616.4,2616.0,6.31876913]
[1729656794292,0.8036,2616.4,2616.0,7.53115991]
[1729656795374,0.8036,2616.4,2616.0,10.97141991]
[1729656795574,0.8036,2616.4,2616.0,7.53115991]
[1729656796296,0.8036,2616.4,2616.0,6.31876913]
[1729656796594,0.8036,2616.4,2616.1,1.19714897]
[1729656801281,4.24363,2616.3,2616.1,1.19714897]
[1729656801617,1.68137016,2616.7,2616.1,1.19714897]
[1729656801618,4.2437,2616.2,2616.1,1.19714897]
[1729656802177,0.8036,2616.2,2616.1,1.19714897]
[1729656805540,4.2437,2616.2,2616.1,1.19714897]
[1729656807635,4.2437,2616.2,2615.7,6.31926913]
[1729656808302,4.2437,2616.2,2615.8,1.68137016]
[1729656808999,0.8077,2616.1,2615.8,1.68137016]
[1729656810700,4.24794,2616.1,2615.7,2.87851913]
[1729656810905,4.24794,2616.1,2615.8,1.68137016]
[1729656811970,4.24794,2616.1,2615.7,6.31923913]
[1729656812669,4.24794,2616.1,2615.8,1.68137016]
[1729656813463,0.8077,2616.1,2615.8,1.68137016]
[1729656813661,0.8077,2616.1,2615.7,6.31923913]
[1729656813960,0.8077,2616.1,2615.8,1.68137016]
[1729656814462,4.24793,2616.1,2615.8,1.68137016]
[1729656814661,4.24793,2616.1,2615.7,6.31923913]
[1729656815163,4.24793,2616.1,2615.8,1.68137016]
[1729656816060,4.24793,2616.1,2615.7,6.31923913]
[1729656817673,4.24793,2616.1,2615.7,5.12209016]
[1729656818338,0.8077,2616.1,2615.7,8.56279016]
[1729656818527,0.8077,2616.1,2615.7,5.12207016]
[1729656818970,0.8077,2616.1,2615.8,1.68137016]
[1729656820079,0.8077,2616.1,2615.7,5.12207016]
[1729656820740,4.24795,2616.1,2615.8,1.68137016]
[1729656820941,0.8128,2616.0,2615.7,5.12207016]
[1729656821130,0.8128,2616.0,2615.7,6.25770494]
[1729656827339,0.8128,2616.0,2615.7,3.4407]
[1729656827544,0.8128,2616.0,2615.7,5.12207016]
[1729656827871,3.4405,2615.9,2615.5,5.12230016]
[1729656828030,4.2533,2615.9,2615.5,1.68137016]
[1729656828235,0.8128,2615.8,2615.6,1.68137016]
[1729656829833,0.8128,2615.8,2615.7,1.68137016]
[1729656830366,0.8128,2615.8,2615.6,1.68137016]
[1729656831251,0.8128,2615.8,2615.7,1.68137016]
[1729656834182,0.8128,2615.8,2615.6,1.68137016]
[1729656834759,0.8128,2615.8,2615.7,1.68137016]
[1729656836772,0.8128,2615.8,2615.6,1.68137016]
[1729656850926,0.8128,2615.8,2615.5,5.12237016]
[1729656851490,0.8128,2615.8,2615.5,6.31951913]
[1729656852723,0.8128,2615.8,2615.5,9.76045913]
[1729656852929,0.8128,2615.8,2615.5,10.97441491]
[1729656853929,0.8128,2615.8,2615.5,7.53341491]
[1729656854603,0.8128,2615.8,2615.5,6.33626594]
[1729656863748,0.8128,2615.8,2615.6,3.44087]
[1729656863950,0.7836,2616.0,2615.6,3.44087]
[1729656864163,0.7836,2616.0,2615.9,1.68137016]
[1729656864328,0.7836,2616.2,2615.9,5.12180016]
[1729656864515,0.7836,2616.2,2615.9,1.68137016]
[1729656864723,0.7836,2616.2,2615.9,5.12184016]
[1729656865654,0.7836,2616.2,2615.9,1.68137016]
[1729656877376,0.7836,2616.2,2616.0,1.68137016]
[1729656877575,0.7836,2616.2,2615.9,1.68137016]
[1729656877746,0.7836,2616.2,2616.0,1.68137016]
[1729656877947,0.7836,2616.2,2615.9,1.68137016]
[1729656878343,3.43984,2616.4,2616.1,1.68137016]
[1729656878575,4.25404,2616.4,2616.1,1.68137016]
[1729656878869,0.8142,2616.4,2616.1,1.68137016]
[1729656879276,4.25404,2616.4,2616.1,1.68137016]
[1729656879867,4.25404,2616.4,2616.0,5.12161016]
[1729656880067,4.25404,2616.4,2616.1,1.68137016]
[1729656880266,4.25404,2616.4,2616.0,5.12161016]
[1729656880479,4.25404,2616.4,2616.1,1.68137016]
[1729656880673,4.25404,2616.4,2616.0,1.68137016]
[1729656881093,7.69399,2616.4,2616.0,1.68137016]
[1729656881251,7.69399,2616.4,2615.9,2.50787016]
[1729656881456,4.25404,2616.4,2615.9,2.50787016]
[1729656881750,4.25404,2616.4,2615.9,6.54315018]
[1729656882381,4.25404,2616.4,2616.0,1.68137016]
[1729656884181,4.25404,2616.4,2615.9,4.86178002]
[1729656884182,4.25404,2616.4,2615.9,6.54315018]
[1729656885281,4.25404,2616.4,2616.0,1.68137016]
[1729656885480,4.25404,2616.4,2616.0,2.67973818]
[1729656888809,4.25404,2616.4,2616.0,1.68137016]
[1729656888999,4.25404,2616.4,2615.9,6.54315018]
[1729656889578,4.25404,2616.4,2616.0,1.68137016]
[1729656890915,4.25404,2616.4,2616.0,5.12173016]
[1729656891277,4.25404,2616.4,2616.1,1.68137016]
[1729656891719,4.25404,2616.4,2616.0,5.12173016]
[1729656891892,4.25404,2616.4,2616.0,6.12009018]
[1729656898004,3.43963,2616.6,2616.3,1.68137016]
[1729656898206,4.21721,2616.7,2616.4,1.68137016]
[1729656898730,4.21721,2616.7,2616.2,5.12146016]
[1729656899027,3.43959,2616.6,2616.1,5.90120016]
[1729656899530,3.43959,2616.6,2616.2,1.68137016]
[1729656901728,3.43959,2616.6,2616.3,1.68137016]
[1729656901932,3.43959,2616.6,2616.2,1.68137016]
[1729656902135,3.43959,2616.6,2616.3,1.68137016]
[1729656903323,3.43959,2616.6,2616.2,2.71536218]
[1729656903628,3.43959,2616.6,2616.3,1.68137016]
[1729656903840,6.87924,2616.6,2616.1,4.21983]
[1729656903996,6.87924,2616.6,2616.2,1.68137016]
[1729656904197,3.43959,2616.6,2616.2,1.68137016]
[1729656905133,6.87926,2616.6,2616.2,1.68137016]
[1729656905307,3.43959,2616.6,2616.2,1.68137016]
[1729656906000,6.87927,2616.6,2616.2,1.68137016]
[1729656906692,3.43971,2616.5,2616.1,2.46097016]
[1729656906901,4.21741,2616.5,2616.2,1.68137016]
[1729656907194,4.21741,2616.5,2616.1,2.46097016]
[1729656908031,4.21741,2616.5,2616.1,1.68137016]
[1729656909960,3.44004,2616.3,2615.9,0.7796]
[1729656910115,3.4401,2616.2,2615.9,1.68137016]
[1729656912359,3.4401,2616.2,2615.8,1.68137016]
[1729656912524,3.4401,2616.2,2615.6,1.68137016]
[1729656912525,3.44038,2616.0,2615.6,1.68137016]
[1729656912854,3.44038,2616.0,2615.7,1.68137016]
[1729656913215,4.21794,2616.1,2615.8,1.68137016]
[1729656914424,4.21794,2616.1,2615.7,1.68137016]
[1729656914742,3.44037,2616.0,2615.7,1.68137016]
[1729656917542,0.7777,2615.9,2615.6,1.68137016]
[1729656917918,0.7777,2615.9,2615.7,1.68137016]
[1729656918618,4.21826,2615.9,2615.6,1.68137016]
[1729656919271,4.21826,2615.9,2615.7,1.68137016]
[1729656919446,4.21826,2615.9,2615.6,1.68137016]
[1729656919447,0.7777,2615.9,2615.6,1.68137016]
[1729656922922,0.7777,2615.9,2615.7,1.68137016]
[1729656925575,0.7777,2615.9,2615.6,1.68137016]
[1729656927968,0.7777,2615.9,2615.7,1.68137016]
[1729656929340,0.77668651,2615.9,2615.7,1.68137016]
[1729656930050,0.77668651,2615.9,2615.6,1.68137016]
[1729656930240,4.21720651,2615.9,2615.4,7.6617]
[1729656930442,4.21720651,2615.9,2615.6,1.68137016]
[1729656930642,0.77668651,2615.9,2615.7,1.68137016]
[1729656931678,0.77668651,2615.9,2615.6,1.68137016]
[1729656932748,0.77668651,2615.9,2615.8,1.68137016]
[1729656933011,0.8239,2616.1,2615.8,1.68137016]
[1729656933297,4.26415,2616.1,2615.7,1.68137016]
[1729656933457,4.26415,2616.1,2615.8,1.68137016]
[1729656934185,3.44037,2616.0,2615.7,1.68137016]
[1729656934386,3.44037,2616.0,2615.6,1.68137016]
[1729656934591,3.44037,2616.0,2615.7,1.68137016]
[1729656939501,4.26413,2616.1,2615.7,1.68137016]
[1729656939716,4.26413,2616.1,2615.8,1.68137016]
[1729656939924,4.26413,2616.1,2615.7,1.68137016]
[1729656940515,0.831,2616.0,2615.4,4.22066]
[1729656940687,0.831,2615.8,2615.5,0.58092148]
[1729656941416,0.831,2615.8,2615.5,2.26229164]
[1729656941625,0.831,2615.8,2615.5,5.70331164]
[1729656944484,0.831,2615.8,2615.5,5.70330164]
[1729656944687,0.831,2615.8,2615.6,0.91443416]
[1729656944896,0.831,2615.8,2615.6,2.59580432]
[1729656946399,0.831,2615.8,2615.6,0.91443416]
[1729656951340,3.44033,2616.1,2615.6,6.03668432]
[1729656951341,0.831,2616.0,2615.6,6.03668432]
[1729656951630,0.831,2616.0,2615.6,4.35531416]
[1729656951796,0.831,2616.0,2615.7,0.43553142]
[1729656952521,4.27138,2616.0,2615.7,0.43553142]
[1729656954697,0.831,2616.0,2615.7,0.43553142]
[1729656954899,3.44051,2615.9,2615.6,0.91443416]
[1729656957301,3.44051,2615.9,2615.4,7.48996496]
[1729656957737,3.44051,2615.9,2615.4,5.8085948]
[1729656958740,3.44051,2615.9,2615.4,2.3675548]
[1729656959102,3.44051,2615.9,2615.4,5.8086948]
[1729656959435,0.7662,2615.8,2615.4,5.0296948]
[1729656959613,0.7662,2615.8,2615.5,0.86965103]
[1729656959813,0.7662,2615.8,2615.4,1.5885548]
[1729656960000,3.43999,2616.3,2615.2,4.5885548]
[1729656960001,4.20722,2615.5,2615.2,4.5885548]
[1729656960398,4.20722,2615.5,2615.1,3.26992496]
[1729656960938,4.20722,2615.5,2615.1,1.5885548]
[1729656961235,3.44126,2615.4,2615.0,1.5885548]
[1729656961421,5.12263016,2615.4,2615.0,1.5885548]
[1729656961631,3.4413,2615.3,2614.9,10.53162496]
[1729656961830,3.4413,2615.3,2614.9,7.53162496]
[1729656962053,3.44126,2615.4,2614.9,7.53162496]
[1729656962263,6.88248,2615.4,2614.9,7.53162496]
[1729656962750,0.7662,2615.2,2614.9,1.5885548]
[1729656962913,1.68137016,2615.1,2614.9,1.5885548]
[1729656963248,0.7662,2614.9,2614.5,5.8507048]
[1729656963449,5.88939016,2614.9,2614.5,1.34633272]
[1729656963817,3.44195,2614.8,2614.3,9.8852909]
[1729656964014,9.33128016,2614.9,2614.3,9.8852909]
[1729656964221,5.88939016,2614.9,2614.4,3.44244]
[1729656964959,4.20802,2614.9,2614.5,3.44232]
[1729656968621,4.20802,2614.9,2614.4,1.68137016]
[1729656968822,4.20802,2614.9,2614.4,2.32564725]
[1729656970242,4.20802,2614.9,2614.4,5.76803725]
[1729656970646,4.20802,2614.9,2614.4,2.32564725]
[1729656970827,3.44201,2614.8,2614.3,5.6228709]
[1729656971780,0.7812,2614.7,2614.3,5.6228709]
[1729656972316,0.7812,2614.7,2614.4,1.68137016]
[1729656973159,0.7812,2614.7,2614.5,1.68137016]
[1729656974146,0.7812,2614.9,2614.6,1.68137016]
[1729656974350,4.22281,2615.1,2614.8,1.68137016]
[1729656974558,5.12250016,2615.5,2614.9,1.68137016]
[1729656974731,3.44136,2615.3,2614.8,5.12330016]
[1729656975057,3.44136,2615.3,2614.8,3.44193]
[1729656975951,3.44136,2615.3,2614.8,5.12330016]
[1729656976462,6.88276,2615.3,2614.8,5.12330016]
[1729656976680,6.88276,2615.3,2614.8,3.44193]
[1729656977148,3.44142,2615.2,2614.8,3.44193]
[1729656978970,3.44142,2615.2,2614.7,2.48097016]
[1729656979642,3.44142,2615.2,2614.7,0.7996]
[1729656979847,3.44142,2615.2,2614.7,4.24165]
[1729656980165,5.12279016,2615.2,2614.7,4.24165]
[1729656980365,3.44142,2615.2,2614.7,4.24165]
[1729656981536,3.44142,2615.2,2614.7,5.92302016]
[1729656982452,3.44142,2615.2,2614.7,6.95020749]
[1729656982862,3.44142,2615.2,2614.7,5.26883733]
[1729656984385,3.44142,2615.2,2614.8,3.44192]
[1729656984585,3.44142,2615.2,2614.7,6.95020749]
[1729656984586,6.88294,2615.2,2614.7,6.95020749]
[1729656986567,6.88294,2615.2,2614.7,5.26883733]
[1729656986767,0.8254,2615.1,2614.7,4.24165]
[1729656987641,4.26696,2615.1,2614.7,4.24165]
[1729656988476,0.8254,2615.1,2614.7,4.24165]
[1729656991441,4.26699,2615.1,2614.6,1.68137016]
[1729656991642,4.26699,2615.1,2614.5,9.38454016]
[1729656991981,0.8254,2615.1,2614.5,6.93063325]
[1729656992282,5.94846016,2615.0,2614.5,4.43056309]
[1729656992595,3.44198,2614.8,2614.3,3.94149074]
[1729656993341,3.44208,2614.7,2614.3,0.49899074]
[1729656993568,3.44208,2614.7,2614.3,5.6229509]
[1729656993951,4.26735,2614.8,2614.3,5.6229509]
[1729656994176,4.26735,2614.8,2614.3,6.61139499]
[1729657000267,4.26735,2614.8,2614.4,1.68137016]
[1729657000607,4.26735,2614.8,2614.3,6.61139499]
[1729657002504,4.26735,2614.8,2614.3,4.93002483]
[1729657002675,4.26735,2614.8,2614.3,6.61139499]
[1729657003380,4.26735,2614.8,2614.3,0.49899074]
[1729657003381,3.44219,2614.7,2614.3,0.49899074]
[1729657007915,3.44219,2614.7,2614.3,5.6229509]
[1729657008790,4.26735,2614.8,2614.3,5.6229509]
[1729657008995,4.26735,2614.8,2614.4,1.68137016]
[1729657009379,4.26735,2614.8,2614.3,9.0654209]
[1729657009721,4.26735,2614.8,2614.4,1.68137016]
[1729657010807,4.26735,2614.8,2614.3,5.2869858]
[1729657011033,4.26735,2614.8,2614.3,9.0654209]
[1729657011238,4.26735,2614.8,2614.3,5.6228909]
[1729657011542,4.26735,2614.8,2614.3,5.6228809]
[1729657012546,4.26735,2614.8,2614.4,1.68137016]
[1729657012905,4.26735,2614.8,2614.3,5.12387016]
[1729657013105,4.26735,2614.8,2614.2,5.12409016]
[1729657013347,3.44214,2614.7,2614.2,5.12409016]
[1729657013547,3.44214,2614.7,2614.2,6.42007464]
[1729657014824,4.26735,2614.8,2614.3,3.44257]
[1729657015136,7.70939,2614.8,2614.3,3.44257]
[1729657015742,0.8131,2614.7,2614.2,3.44272]
[1729657015920,4.25524,2614.7,2614.2,5.12409016]
[1729657016118,0.8131,2614.7,2614.3,5.12394016]
[1729657016536,3.44235,2614.5,2614.2,1.5852384]
[1729657016846,3.44235,2614.5,2614.0,3.44292]
[1729657016847,0.8131,2614.4,2614.0,3.44292]
[1729657017724,0.8131,2614.6,2614.0,4.26939]
[1729657017920,4.25511,2614.8,2614.5,1.68137016]
[1729657018131,4.25511,2614.8,2614.4,1.68137016]
[1729657018577,4.25511,2614.8,2614.3,5.95036016]
[1729657018783,4.25511,2614.8,2614.4,1.68137016]
[1729657020187,0.8131,2614.8,2614.5,1.68137016]
[1729657021756,3.44183,2614.9,2614.5,1.68137016]
[1729657022293,6.88372,2614.9,2614.5,1.68137016]
[1729657022664,3.44198,2614.8,2614.5,1.68137016]
[1729657022871,3.44198,2614.8,2614.4,1.68137016]
[1729657023070,6.88373,2614.9,2614.4,2.51293253]
[1729657024290,3.44183,2614.9,2614.4,2.51293253]
[1729657024590,3.44183,2614.9,2614.4,5.95540253]
[1729657024993,6.88372,2614.9,2614.4,5.95540253]
[1729657025166,0.8131,2615.0,2614.5,1.68137016]
[1729657025368,4.25481,2615.0,2614.6,0.25894267]
[1729657026095,0.8131,2615.0,2614.6,5.38241283]
[1729657026512,0.8131,2615.0,2614.6,3.70104267]
[1729657031206,4.25479,2615.0,2614.6,0.25894267]
[1729657032707,0.8131,2615.0,2614.6,5.38246283]
[1729657032907,0.8131,2615.0,2614.7,0.88039449]
[1729657033211,0.8131,2615.0,2614.6,0.25894267]
[1729657035182,4.26789,2614.7,2614.2,3.44266]
[1729657035516,4.26789,2614.7,2614.2,5.12403016]
[1729657035670,7.71008,2614.7,2614.1,7.71863]
[1729657035995,7.71008,2614.7,2614.1,4.27584]
[1729657036511,4.26789,2614.7,2614.1,4.35233831]
[1729657036911,4.26789,2614.7,2614.2,5.12402016]
[1729657037075,4.26789,2614.7,2614.3,1.68137016]
[1729657037294,7.71009,2614.7,2614.2,1.68137016]
[1729657037501,4.26789,2614.7,2614.3,1.68137016]
[1729657038197,3.44188,2614.9,2614.6,1.68137016]
[1729657038198,0.8257,2614.9,2614.6,1.68137016]
[1729657038430,6.4417,2615.0,2614.6,1.68137016]
[1729657038592,3.4417,2615.0,2614.6,2.51447016]
[1729657038793,3.44181,2614.9,2614.6,0.8331]
[1729657038999,3.44181,2614.9,2614.4,5.95684016]
[1729657039240,6.8837,2614.9,2614.5,0.75420786]
[1729657039548,3.44181,2614.9,2614.5,0.75420786]
[1729657040339,3.44181,2614.9,2614.5,2.43557802]
[1729657040729,7.70901,2615.1,2614.5,5.87790802]
[1729657041247,4.26734,2615.1,2614.5,5.9543974]
[1729657041400,3.44173,2615.0,2614.5,5.9543974]
[1729657041595,4.26734,2615.1,2614.7,1.68137016]
[1729657041810,4.26733,2615.1,2614.6,2.7043569]
[1729657042044,3.44174,2615.0,2614.6,1.02298674]
[1729657042334,7.70898,2615.1,2614.6,6.1465569]
[1729657042524,7.70898,2615.1,2614.7,0.69007648]
[1729657042726,3.44169,2615.0,2614.7,0.69007648]
[1729657042943,3.44168,2615.0,2614.7,0.69007648]
[1729657043147,3.44168,2615.0,2614.6,1.02298674]
[1729657046109,3.44181,2614.9,2614.6,1.02298674]
[1729657046441,3.44181,2614.9,2614.4,5.95693016]
[1729657048154,4.26734,2615.1,2614.6,5.12357016]
[1729657048444,4.26734,2615.1,2614.7,0.8267]
[1729657049722,0.8257,2615.1,2614.7,4.26872]
[1729657049929,3.44143,2615.2,2614.7,4.26872]
[1729657050135,3.44143,2615.2,2614.7,5.20794902]
[1729657050298,4.26799,2615.5,2614.9,1.68137016]
[1729657050505,3.8269,2615.8,2615.3,2.50807016]
[1729657050705,0.59849245,2615.7,2615.5,1.68137016]
[1729657050935,3.44051,2615.9,2615.4,5.12241016]
[1729657051912,3.44063,2615.8,2615.4,1.68137016]
[1729657052349,3.44051,2615.9,2615.5,1.68137016]
[1729657052549,3.44051,2615.9,2615.4,5.12251016]
[1729657053047,6.88112,2615.9,2615.4,5.12251016]
[1729657053913,3.44051,2615.9,2615.4,5.12251016]
[1729657054314,3.44052,2615.9,2615.5,1.68137016]
[1729657054535,0.8269,2616.0,2615.5,1.68137016]
[1729657054743,4.26701,2616.2,2615.8,1.68137016]
[1729657054945,4.0384885,2616.3,2615.8,5.12198016]
[1729657055309,4.0384885,2616.3,2615.9,1.68137016]
[1729657055508,4.0384885,2616.3,2615.8,7.48367336]
[1729657055509,4.0384885,2616.3,2615.8,5.72443352]
[1729657055724,4.0384885,2616.3,2615.8,5.80088412]
[1729657055948,3.44005,2616.3,2615.8,9.16499352]
[1729657056104,3.44005,2616.3,2615.9,1.68137016]
[1729657056308,0.8269,2616.4,2615.9,2.33648351]
[1729657056542,3.4398,2616.5,2616.1,2.50807016]
[1729657056744,0.8269,2616.6,2616.1,2.58451338]
[1729657056946,6.43933,2616.8,2616.2,8.6378102]
[1729657057252,6.43933,2616.8,2616.2,3.44]
[1729657057253,7.26623,2616.8,2616.2,3.44]
[1729657057407,0.8269,2616.8,2616.4,1.68137016]
[1729657057850,0.8269,2616.8,2616.3,5.54794016]
[1729657058259,0.8269,2616.8,2616.4,3.43982]
[1729657058951,4.26622,2616.8,2616.3,2.10804016]
[1729657059110,5.12063016,2616.9,2616.3,2.10804016]
[1729657059111,3.43926,2616.9,2616.6,1.68137016]
[1729657059315,3.43926,2616.9,2616.5,2.50587016]
[1729657059525,3.43926,2616.9,2616.5,0.8245]
[1729657060231,5.12063016,2616.9,2616.5,0.8245]
[1729657060418,3.43932,2616.8,2616.5,0.8245]
[1729657060612,3.43932,2616.8,2616.3,1.25117]
[1729657060818,3.43932,2616.8,2616.4,0.98126202]
[1729657061058,3.43932,2616.8,2616.3,1.25117]
[1729657061641,3.43932,2616.8,2616.3,2.93254016]
[1729657061853,3.43932,2616.8,2616.3,1.25117]
[1729657062148,5.12063016,2616.9,2616.3,1.25117]
[1729657062515,8.55988016,2616.9,2616.3,1.25117]
[1729657062852,5.12062016,2616.9,2616.4,0.98125802]
[1729657063151,3.43868,2617.3,2615.9,3.0]
[1729657063152,1.68137016,2616.5,2615.9,3.0]
[1729657063313,1.68137016,2616.4,2615.9,6.44043]
[1729657063751,5.12115016,2616.5,2615.9,3.44043]
[1729657064065,1.68137016,2616.4,2615.9,0.93869702]
[1729657064273,3.43985,2616.4,2615.9,0.93869702]
[1729657064583,3.43985,2616.4,2615.9,2.62006718]
[1729657068066,6.87957,2616.5,2615.9,6.06053718]
[1729657068268,4.23662,2616.6,2616.0,5.12170016]
[1729657068473,3.43962,2616.6,2616.1,5.12160016]
[1729657068693,3.43962,2616.6,2616.2,2.50587016]
[1729657068889,3.43962,2616.6,2616.2,0.8245]
[1729657069094,3.43962,2616.6,2616.2,2.50587016]
[1729657069289,3.43962,2616.6,2616.2,0.8245]
[1729657072081,3.43979,2616.5,2616.2,0.8245]
[1729657072282,6.8796,2616.5,2616.0,1.51300372]
[1729657072580,4.23686,2616.4,2616.0,1.51300372]
[1729657075801,0.797,2616.4,2616.0,1.51300372]
[1729657076011,6.87951,2616.5,2616.0,3.19437388]
[1729657076486,3.43973,2616.5,2616.0,3.19437388]
[1729657076685,3.43973,2616.5,2616.0,1.51300372]
[1729657077716,3.43973,2616.5,2616.0,3.19437388]
[1729657078702,3.43973,2616.5,2615.4,1.36906375]
[1729657078703,1.68137016,2616.7,2615.7,3.44067]
[1729657078906,0.7769,2616.2,2615.7,5.12204016]
[1729657079416,4.21706,2616.2,2615.7,3.44067]
[1729657079624,4.21706,2616.2,2615.7,6.05670718]
[1729657081492,7.65723,2616.2,2615.7,6.05670718]
[1729657081689,4.21706,2616.2,2615.8,1.68137016]
[1729657081936,7.21681,2616.4,2615.9,2.46507016]
[1729657082301,4.21681,2616.4,2615.9,2.46507016]
[1729657082507,3.44,2616.3,2615.9,3.14911088]
[1729657082709,3.44,2616.3,2616.0,1.68137016]
[1729657083029,3.44,2616.3,2615.9,3.14911088]
[1729657083341,3.4401,2616.2,2615.9,3.14911088]
[1729657084147,1.68137016,2616.0,2615.7,0.7837]
[1729657084350,1.68137016,2616.0,2615.4,4.38773943]
[1729657084351,4.21733,2616.0,2615.5,4.22465]
[1729657084795,4.21733,2616.0,2615.6,3.44087]
[1729657085199,0.7769,2616.0,2615.6,5.12224016]
[1729657085427,0.7769,2616.0,2615.7,0.59059402]
[1729657085645,3.44017,2616.2,2615.8,1.68137016]
[1729657085943,3.44017,2616.2,2615.7,5.78909684]
[1729657086144,6.88036,2616.2,2615.7,5.78909684]
[1729657086574,3.44017,2616.2,2615.8,0.92298668]
[1729657087473,4.21664,2616.5,2616.1,1.68137016]
[1729657087777,4.21664,2616.5,2616.0,3.44035]
[1729657087964,4.21664,2616.5,2616.0,5.12172016]
[1729657088274,4.21664,2616.5,2616.0,4.55131668]
[1729657088847,0.7769,2616.5,2616.0,1.11096668]
[1729657089167,6.87929,2616.6,2616.1,3.44022]
[1729657089329,3.43971,2616.5,2616.1,3.44022]
[1729657090332,0.8259,2616.7,2616.3,0.7548]
[1729657090534,4.26535,2616.7,2616.3,0.7548]
[1729657090979,0.8259,2616.7,2616.3,4.1947]
[1729657091271,0.8259,2616.7,2616.4,0.41947]
[1729657092273,4.26536,2616.7,2616.4,0.41947]
[1729657092849,3.43941,2616.8,2616.4,0.41947]